[Event "44th Chess Olympiad Open 2022"]
[Site "Chennai"]
[Date "2022.07.30"]
[Round "2.63"]
[White "Abera, Aydagnuhem Gezachew"]
[Black "Winston Gerald, Mansfield Thomas"]
[Result "1-0"]
[ECO "B07"]
[WhiteElo "2137"]
[BlackElo "1832"]
[Annotator "TA"]
[PlyCount "128"]
[EventDate "2022.07.29"]
[EventType "team-tourn"]
[EventCountry "IND"]
[SourceTitle "playchess.com"]
[Source "ChessBase"]
[SourceQuality "1"]
[WhiteTeam "Ethiopia"]
[BlackTeam "SLE"]
[WhiteTeamCountry "ETH"]
[TimeControl "40/5400+30:1800+30"]

{[%evp 9,128,24,33,-12,45,0,0,-8,6,6,11,7,27,-8,65,74,59,29,27,-6,-2,-9,-6,-68,-22,-50,-10,0,53,-33,-49,-85,-4,0,0,-58,160,163,159,66,188,95,95,10,10,0,0,0,18,0,22,22,32,22,67,40,41,31,77,70,162,188,170,169,152,96,343,341,514,616,616,582,582,558,5714,12828,6724,6820,12831,12832,2518,2146,12837,12837,12835,12837,12837,8407,12839,12838,12838,12839,12839,12839,12841,12839,12840,12840,12840,12839,12843,12839,29985,29986,29986,29987,29986,29987,29987,29988,29988,29989,29989,29990,29992,29991,29991,29986,29986,29985,29996]} 1. e4 {[%emt 0:00:11]} d6 {[%emt 0:00:09]} 2. d4 {[%emt 0:00:12]} Nf6 {[%emt 0:00:11]} 3. Nc3 {[%emt 0:00:14]} c6 {[%emt 0:00:11]} 4. Nf3 {[%emt 0:00:11]} Bg4 {[%emt 0:00:28]} 5. Bc4 {[%emt 0:00:27]} Nbd7 {[%emt 0:00:56]} 6. Bf4 {[%emt 0:02:42][%cal Of3g5] B07: Pirc Defence: Miscellaneous Systems.} Qa5 {[%emt 0:09:31] [#]} (6... b5 $11 7. Bd3 e5) 7. Qd2 $146 {[%emt 0:03:58]} (7. O-O $14) ({Predecessor:} 7. O-O e5 8. dxe5 dxe5 9. Bd2 Qc7 10. h3 Bh5 11. Bg5 Bb4 12. Re1 h6 13. Bd2 {½-½ (77) Song,A-Bennett,H (2074) Auckland 2003}) 7... e5 $11 {[%emt 0:03:47]} 8. Be3 {[%emt 0:03:53] The position is equal.} b5 {[%emt 0:01:49]} 9. Bd3 {[%emt 0:01:44]} a6 {[%emt 0:01:09]} 10. O-O {[%emt 0:03:29][%cal Ob2b4]} Qc7 {[%emt 0:02:09]} 11. h3 {[%emt 0:04:53]} Bh5 {[%emt 0:00:30]} (11... Bxf3 $11 12. gxf3 Be7) 12. Nh4 $14 {[%emt 0:04:16]} Bg6 {[%emt 0:00:41]} 13. a3 {[%emt 0:03:47]} Be7 {[%emt 0:00:24][%cal Of6e4]} 14. Nf5 {[%emt 0:04:22]} Bxf5 {[%emt 0:00:28]} 15. exf5 {[%emt 0:00:09]} O-O {[%emt 0:01:40]} 16. g4 {[%emt 0:01:57]} (16. Rfe1 $11) 16... exd4 {[%emt 0:04:44]} (16... d5 $15 17. dxe5 Nxe5) 17. Bxd4 $11 {[%emt 0:00:33]} Ne5 {[%emt 0:00:49]} 18. Be2 $36 {[%emt 0:02:23][%mdl 2048] Prevents Nf3+. White has some pressure.} Rfe8 {[%emt 0:03:30]} (18... d5 $11) 19. f4 {[%emt 0:01:35]} ({White should try} 19. g5 $1 $14 Nfd7 20. b3) 19... Nc4 $15 {[%emt 0:00:44]} 20. Qc1 {[%emt 0:02:49]} Nd5 {[%emt 0:01:29]} ({Of course not} 20... c5 21. Bf2 $11) (20... d5 $17) 21. Nxd5 $11 {[%emt 0:03:37]} cxd5 {[%emt 0:00:06]} 22. Bf3 {[%emt 0:03:07]} (22. Bd3 $11) 22... Qc6 $2 {[%emt 0:00:12]} (22... Bf6 $15 {stays ahead.} 23. Bxf6 gxf6) 23. b3 $16 {[%emt 0:01:14]} Nb6 {[%emt 0:00:25]} 24. Qd2 {[%emt 0:01:19]} (24. g5 $16) 24... Rac8 {[%emt 0:00:51]} (24... Bf6 $14) 25. Rac1 {[%emt 0:02:32]} (25. g5 $18) 25... Bf6 {[%emt 0:00:32] [#]} 26. Bxf6 {[%emt 0:02:47]} (26. c3 $1 $16) 26... gxf6 $11 {[%emt 0:00:06]} 27. Qd4 {[%emt 0:03:34]} Qc5 {[%emt 0:00:21]} 28. Qxc5 {[%emt 0:03:08]} dxc5 {[%emt 0:00:28]} 29. Kf2 {[%emt 0:00:56]} Rcd8 {[%emt 0:01:05]} 30. Rfe1 {[%emt 0:00:52]} Kf8 {[%emt 0:02:46]} 31. h4 {[%emt 0:01:47][%cal Bh3h4,Bh4h5,Bh5h6][%mdl 32]} a5 {[%emt 0:00:52]} 32. g5 {[%emt 0:01:27]} Rxe1 {[%emt 0:00:22]} 33. Rxe1 $14 {[%emt 0:00:17][%mdl 4096] Endgame KRB-KRN} Rd6 {[%emt 0:01:29]} (33... d4 $14) 34. h5 $16 {[%emt 0:00:47] Strongly threatening h6. White is more active.} c4 {[%emt 0:03:19] [#]} ({Better is} 34... Nc8 $14) 35. h6 $1 $18 {[%emt 0:01:02][%cal Og5g6]} fxg5 {[%emt 0:06:11]} 36. fxg5 {[%emt 0:00:39]} d4 {[%emt 0:01:30]} 37. Re5 {[%emt 0:03:59]} ({White should play} 37. Rb1) 37... d3 $2 {[%emt 0:02:23]} (37... f6 $16 38. Rxb5 fxg5) 38. cxd3 {[%emt 0:00:00]} cxb3 {[%emt 0:00:24]} (38... cxd3 $142 39. Rxb5 d2) 39. Rxb5 {[%emt 0:01:51]} a4 {[%emt 0:00:41]} 40. Be4 {[%emt 0:00:42]} Nd7 {[%emt 0:02:20]} 41. Ke3 {[%emt 0:30:56]} Rb6 {[%emt 0:30:37]} 42. Rxb6 {[%emt 0:02:40]} Nxb6 {[%emt 0:00:05] KB-KN} 43. Kd2 {[%emt 0:00:09] Black must now prevent Kc3.} Nc8 {[%emt 0:00:55]} 44. d4 {[%emt 0:01:23]} Nd6 {[%emt 0:00:25]} 45. Bd3 {[%emt 0:00:09] Threatens to win with Kc3.} Nc8 {[%emt 0:03:16]} 46. Kc3 {[%emt 0:01:53]} Nb6 {[%emt 0:00:21]} 47. Be4 {[%emt 0:01:28]} Kg8 {[%emt 0:02:29]} 48. Kb4 {[%emt 0:00:48]} Kf8 {[%emt 0:00:35]} 49. Kb5 {[%emt 0:00:34]} Nc8 {[%emt 0:00:32]} 50. Kxa4 {[%emt 0:00:33]} Nd6 {[%emt 0:00:05]} 51. Bd3 {[%emt 0:00:14]} b2 {[%emt 0:01:56]} 52. Kb3 {[%emt 0:00:00]} Nb5 {[%emt 0:00:29]} 53. d5 {[%emt 0:00:32]} Nd4+ {[%emt 0:02:02]} 54. Kxb2 {[%emt 0:00:19]} Nf3 {[%emt 0:00:32]} 55. a4 {[%emt 0:01:54]} Nxg5 {[%emt 0:02:37]} 56. a5 {[%emt 0:00:00] White mates.} Nf3 {[%emt 0:00:54]} 57. a6 {[%emt 0:00:00]} Ne5 {[%emt 0:00:11]} 58. Bb5 {[%emt 0:00:17]} Ke7 {[%emt 0:03:08]} 59. a7 {[%emt 0:00:00]} Kf6 {[%emt 0:00:41]} 60. a8=Q {[%emt 0:00:22]} Kxf5 {[%emt 0:00:33]} 61. d6 {[%emt 0:01:03][%cal Bd5d6,Bd6d7][%mdl 32]} Kg6 {[%emt 0:00:07]} 62. Qe4+ {[%emt 0:00:24]} Kf6 {[%emt 0:00:26]} 63. Qxh7 {[%emt 0:00:39]} Ke6 {[%emt 0:00:10]} 64. d7 {[%emt 0:00:51]} Kd5 {[%emt 0:01:35] Weighted Error Value: White=0.30/Black=0.68} 1-0

[Event "44th Chess Olympiad Open 2022"]
[Site "Chennai"]
[Date "2022.07.30"]
[Round "2.63"]
[White "Badene, Habtamu Bayu"]
[Black "Adeshole Beckley, Brian"]
[Result "1/2-1/2"]
[ECO "C14"]
[WhiteElo "2011"]
[BlackElo "1590"]
[Annotator "TA"]
[PlyCount "107"]
[EventDate "2022.07.29"]
[EventType "team-tourn"]
[EventCountry "IND"]
[SourceTitle "playchess.com"]
[Source "ChessBase"]
[SourceQuality "1"]
[WhiteTeam "Ethiopia"]
[BlackTeam "SLE"]
[WhiteTeamCountry "ETH"]
[TimeControl "40/5400+30:1800+30"]

{[%evp 10,107,24,27,33,9,36,19,10,-18,37,0,20,16,85,81,90,92,103,93,86,37,60,-300,-302,-295,-297,-311,-310,-312,-308,-305,-306,-301,-302,-301,-291,-298,-287,-301,-291,-305,-288,-332,-219,-220,-211,-202,-202,-308,-281,-325,-329,-346,-335,-420,-352,-384,-374,-386,-385,-528,-439,-415,-385,-385,-237,-241,-143,-143,-135,-140,-82,-96,-87,-112,-88,-81,-53,-101,-94,-91,-85,-222,-212,-291,-289,-275,-275,-584,-597,-903,-331,-204,0,0,0,-8,0,0]} 1. e4 {[%emt 0:00:04]} e6 {[%emt 0:00:09]} 2. d4 {[%emt 0:00:17]} d5 {[%emt 0:00:04]} 3. Nc3 {[%emt 0:00:19]} Nf6 {[%emt 0:00:11]} 4. Bg5 {[%emt 0:01:06]} Be7 {[%emt 0:00:14]} 5. e5 {[%emt 0:00:56]} Nfd7 {[%emt 0:00:07]} 6. h4 {[%emt 0:00:52]} Nc6 {[%emt 0:00:30] C14: French: Classical System: 4 Bg5 Be7 main line.} 7. a3 {[%emt 0:01:06] [#]} h6 $146 {[%emt 0:00:42]} ({Predecessor:} 7... f6 8. exf6 Nxf6 9. Nf3 Bd7 10. Bd3 O-O 11. Qe2 a6 12. Nd1 Bd6 13. Ne3 h6 14. O-O-O hxg5 15. hxg5 {0-1 (32) Tipter,N (2052)-Iagar,R (2141) Madrid 2010}) 8. Bxe7 {[%emt 0:01:21]} Nxe7 {[%emt 0:00:08]} 9. Bd3 {[%emt 0:03:32]} a6 {[%emt 0:01:59]} (9... c5 $11) 10. b4 {[%emt 0:06:47][%cal Bb2b4,Bb4b5,Bb5c6][%mdl 32]} a5 {[%emt 0:01:01]} 11. Nge2 {[%emt 0:01:53]} b6 {[%emt 0:03:23]} (11... O-O $11 {keeps the balance.}) 12. b5 $1 $16 {[%emt 0:02:30] White is more active.} c5 {[%emt 0:02:10]} 13. bxc6 $1 {[%emt 0:01:38]} Nxc6 {[%emt 0:00:15][%cal Be7c6,Bc6e5,Be5c4][%mdl 32]} 14. Nb5 {[%emt 0:01:21]} O-O {[%emt 0:00:19]} 15. c3 {[%emt 0:01:24]} (15. Nf4 $16) 15... Ba6 {[%emt 0:02:29]} 16. Nd6 $2 {[%emt 0:00:36][%mdl 8192]} (16. a4 $14 {keeps the upper hand.}) 16... Bxd3 $19 {[%emt 0:00:48]} 17. Qxd3 {[%emt 0:01:15] [#]} Ndxe5 $1 {[%emt 0:00:20][%mdl 512]} 18. dxe5 {[%emt 0:01:07]} (18. Qg3 Qxd6) 18... Nxe5 {[%emt 0:00:13]} 19. Qg3 {[%emt 0:01:53]} Qxd6 {[%emt 0:00:43]} 20. O-O {[%emt 0:00:29]} Nc4 {[%emt 0:01:16]} 21. Qxd6 {[%emt 0:00:46]} Nxd6 {[%emt 0:00:07]} 22. Rfb1 {[%emt 0:01:46]} Nc4 {[%emt 0:02:28]} 23. a4 {[%emt 0:01:04]} Rfc8 {[%emt 0:02:08]} 24. f3 {[%emt 0:10:44]} Rab8 {[%emt 0:02:19]} 25. Kf2 {[%emt 0:04:19]} Nd6 {[%emt 0:05:35]} 26. Ke1 {[%emt 0:07:12]} b5 {[%emt 0:06:44]} 27. axb5 {[%emt 0:04:42]} Rxb5 {[%emt 0:00:20]} 28. Rxb5 {[%emt 0:01:11]} Nxb5 {[%emt 0:00:07][%mdl 4096] Endgame KRN-KRN} 29. Kd2 {[%emt 0:00:40]} (29. Rxa5 {is a better defense.} Nxc3 30. Nxc3 Rxc3 31. h5) 29... Ra8 {[%emt 0:00:33]} 30. Ra4 {[%emt 0:02:31]} Nd6 {[%emt 0:01:29]} 31. Kd3 {[%emt 0:00:52]} Nc4 {[%emt 0:00:34]} 32. Kd4 {[%emt 0:02:23]} Rc8 {[%emt 0:02:54]} 33. Ra2 {[%emt 0:01:03]} a4 {[%emt 0:01:37][%cal Ba5a4,Ba4a3][%mdl 32]} 34. Nc1 {[%emt 0:06:16]} a3 {[%emt 0:01:13]} 35. Nd3 {[%emt 0:02:06]} Kf8 {[%emt 0:02:56]} 36. Nb4 {[%emt 0:00:48]} Ke7 {[%emt 0:00:57]} 37. Nc2 {[%emt 0:02:02]} Kd6 {[%emt 0:00:21]} 38. Nxa3 {[%emt 0:02:07]} e5+ {[%emt 0:01:27]} (38... Nxa3 $19 39. Rxa3 Rc4+ 40. Kd3 Rxh4) 39. Kd3 $17 {[%emt 0:00:35]} Nxa3 {[%emt 0:02:58]} 40. Rxa3 {[%emt 0:00:09] KR-KR} Rc4 {[%emt 0:00:44]} ({Black should try} 40... h5 41. Ra7 Rc7 42. Ra6+ Rc6) 41. Ra6+ {[%emt 0:31:12]} Ke7 {[%emt 0:30:08]} 42. Ra5 {[%emt 0:03:52]} Ke6 {[%emt 0:01:39] And now ...e4+ would win.} 43. Ra6+ {[%emt 0:00:23]} Kf5 {[%emt 0:01:50] Threatens to win with ...e4+.} 44. Ra5 {[%emt 0:00:13]} (44. Ra7 $15) 44... Rxh4 {[%emt 0:08:22]} 45. Rxd5 {[%emt 0:00:54]} Rh2 {[%emt 0:00:52]} 46. g4+ {[%emt 0:04:23]} (46. c4 $17 {was the only defense.}) 46... Kf4 $19 {[%emt 0:01:02] Strongly threatening ...f6.} 47. Rd7 {[%emt 0:00:26] [#]} f6 {[%emt 0:03:19]} ({Stronger than} 47... Kxf3 48. Rxf7+ Kxg4 49. Rxg7+ Kf5 50. Rf7+ Ke6 51. Rf8 $15) 48. Rxg7 {[%emt 0:00:48]} Kxf3 {[%emt 0:00:15] Hoping for ...e4+.} 49. Rf7 $2 {[%emt 0:00:27]} (49. Re7 {nothing else works.}) 49... e4+ {[%emt 0:00:29]} 50. Kc4 {[%emt 0:00:46]} Kxg4 $2 {[%emt 0:01:36]} (50... e3 {aiming for ...e2.} 51. Rxf6+ Ke2) 51. Rxf6 {[%emt 0:00:18] [#]} e3 $2 {[%emt 0:01:16]} ({Black should play} 51... Kg5 $1 $19 {[%cal Rg5f6]} 52. Rf1 Rd2 53. Rg1+ Kf4 54. Rf1+ Ke5) 52. Kd3 $11 {[%emt 0:01:07] The position is equal.} e2 {[%emt 0:01:21]} 53. Kd2 {[%emt 0:00:26]} Kg3 {[%emt 0:02:20]} 54. Ke1 {[%emt 0:01:45] Weighted Error Value: White=0.51/Black=0.35} 1/2-1/2

[Event "44th Chess Olympiad Open 2022"]
[Site "Chennai"]
[Date "2022.07.30"]
[Round "2.63"]
[White "Kamara, Ansumana"]
[Black "Jimma, Desalegn Fekadu"]
[Result "0-1"]
[ECO "B80"]
[WhiteElo "1896"]
[BlackElo "2112"]
[Annotator "TA"]
[PlyCount "134"]
[EventDate "2022.07.29"]
[EventType "team-tourn"]
[EventCountry "IND"]
[SourceTitle "playchess.com"]
[Source "ChessBase"]
[SourceQuality "1"]
[WhiteTeam "SLE"]
[BlackTeam "Ethiopia"]
[BlackTeamCountry "ETH"]
[TimeControl "40/5400+30:1800+30"]

{[%evp 18,133,66,0,60,-53,73,66,78,44,84,36,72,49,101,42,56,57,53,-15,102,-120,-123,-135,-137,-175,-178,-178,-83,-208,-218,-425,-425,-482,-479,-545,-524,-706,-707,-706,-677,-686,-662,-740,-712,-1922,-956,-1285,-645,-719,-719,-972,-886,-985,-989,-5497,-5313,-29972,-29974,-29974,-29975,-29969,-29970,-4706,-727,-29972,-29967,-29971,-29974,-29975,-29976,-29978,-29979,-29978,-29979,-29980,-29981,-29981,-29982,-29982,-29983,-29983,-29984,-29984,-29985,-29985,-29986,-29986,-29987,-29987,-29988,-29988,-29989,-29989,-29989,-29990,-29990,-29990,-29991,-29991,-29992,-29992,-29993,-29993,-29993,-29993,-29994,-29994,-29995,-29996,-29997,-29997,-29998,-29999,-29998,-29998,-29999,-29999]} 1. e4 {[%emt 0:00:12]} c5 {[%emt 0:00:07]} 2. Nf3 {[%emt 0:00:08]} d6 {[%emt 0:00:09]} 3. d4 {[%emt 0:00:06]} cxd4 {[%emt 0:00:07]} 4. Nxd4 {[%emt 0:00:07]} Nf6 {[%emt 0:00:11]} 5. Nc3 {[%emt 0:00:11]} a6 {[%emt 0:00:09]} 6. Be3 {[%emt 0:00:14]} e6 {[%emt 0:00:27]} 7. f3 {[%emt 0:00:15]} Nbd7 {[%emt 0:02:20]} 8. Qd2 {[%emt 0:00:26]} b5 {[%emt 0:00:45]} 9. g4 {[%emt 0:02:43][%cal Bg2g4,Bg4g5][%mdl 32]} Bb7 {[%emt 0:00:49]} 10. O-O-O {[%emt 0:04:08]} (10. g5 $14 Ng8 11. O-O-O) 10... b4 {[%emt 0:02:07] B80: Sicilian Scheveningen: 6 g3 and 6 Be3, including English Attack.} (10... h6 $11) 11. Na4 {[%emt 0:01:19]} ({White should play} 11. Nce2 $14) 11... d5 {[%emt 0:01:59]} (11... Qa5 $15 {stays ahead.} 12. b3 h6) 12. g5 $16 {[%emt 0:01:38]} Nh5 {[%emt 0:01:28] [#] White is slightly better.} 13. exd5 $146 {[%emt 0:01:14]} ({Predecessor:} 13. Bd3 g6 14. Kb1 Qa5 15. b3 e5 16. Ne2 d4 17. Bf2 Bc6 18. Nb2 Qc7 19. Bg3 {½-½ (28) Janssen,H (1837)-Helmsen,F (1971) Plau am See 2006}) 13... Bxd5 {[%emt 0:00:47]} 14. Be2 {[%emt 0:02:13]} (14. b3 $16) 14... g6 {[%emt 0:02:38]} 15. Kb1 {[%emt 0:01:23]} Be7 {[%emt 0:03:02]} (15... Qa5 $14 16. c4 bxc3 17. Nxc3 Bb4) 16. Rhf1 {[%emt 0:00:54]} ({White should try} 16. c4 $16 bxc3 17. Nxc3) 16... O-O {[%emt 0:16:53]} 17. f4 {[%emt 0:02:05]} Ng7 {[%emt 0:01:21]} 18. f5 {[%emt 0:03:24]} ({Better is} 18. Bf3 $14 Rc8 19. Bxd5 exd5 20. f5) 18... gxf5 {[%emt 0:10:46]} (18... Nxf5 $11 {remains equal.} 19. Nxf5 gxf5) 19. Nxf5 $2 {[%emt 0:00:13]} Nxf5 $17 {[%emt 0:01:17]} 20. Rxf5 {[%emt 0:00:08]} Bc6 {[%emt 0:00:52]} ({Don't do} 20... exf5 21. Qxd5 Qc7 22. Qxd7 Qxd7 23. Rxd7 $18) 21. Bf3 {[%emt 0:03:15][%cal Of3c6]} Bxa4 {[%emt 0:00:58]} ({Not} 21... exf5 22. Bxc6 Ne5 23. Bxa8 Qxa8 24. Nb6 $11) 22. Rf4 {[%emt 0:01:59] [#]} Rc8 {[%emt 0:01:01]} (22... Bxg5 $2 23. Rg4 f6 24. Bxa8 $18) (22... Qc7 $1 $19 {has better winning chances. Threatens to win with ...Rad8.} 23. Bxa8 Rxa8) 23. b3 {[%emt 0:00:12] Now White is beyond hope.} (23. Be4 $17) 23... Bb5 $19 {[%emt 0:01:29] aiming for ...Qc7.} ({Much less strong is} 23... Bxg5 24. Rg4 f6 25. bxa4 $16) 24. Rh4 $2 {[%emt 0:00:26]} (24. Bb7 {was called for.}) 24... Ne5 {[%emt 0:06:27]} 25. Qg2 {[%emt 0:02:50] [#]} Qc7 {[%emt 0:04:28]} 26. Be4 {[%emt 0:00:45]} Ng6 {[%emt 0:02:01]} 27. Qh3 {[%emt 0:18:14]} Nxh4 {[%emt 0:10:39]} 28. Qxh4 {[%emt 0:00:41]} f5 {[%emt 0:00:30]} 29. gxf6 {[%emt 0:01:12]} Bxf6 {[%emt 0:00:04][%cal Be7f6,Bf6a1,Ba1c3][%mdl 32]} 30. Rg1+ {[%emt 0:00:59]} Kh8 {[%emt 0:02:14]} 31. Qh3 {[%emt 0:17:42]} Rg8 {[%emt 0:03:30]} 32. Rd1 {[%emt 0:06:29]} Rce8 {[%emt 0:02:57][%cal Bc8e8,Be8d8,Bd8d2][%mdl 32]} 33. Bb6 {[%emt 0:06:10]} Qg7 {[%emt 0:00:54]} 34. Bc5 {[%emt 0:06:09]} Ba1 {[%emt 0:04:49][%csl Ga1][%cal Rg7b2]} 35. c3 {[%emt 0:00:44]} Bxc3 {[%emt 0:00:19]} 36. a3 {[%emt 0:03:51]} Rd8 {[%emt 0:02:41]} 37. Rc1 {[%emt 0:01:03]} Ba1 {[%emt 0:01:23][%csl Ga1][%cal Rg7b2]} 38. Qxh7+ {[%emt 0:04:53]} Qxh7 {[%emt 0:00:25]} 39. Bxh7 {[%emt 0:00:08]} Kxh7 {[%emt 0:00:38]} 40. Kxa1 {[%emt 0:00:11]} bxa3 {[%emt 0:00:28] White must now prevent ...Rg2.} 41. Bxa3 {[%emt 0:30:21]} Rd2 {[%emt 0:30:32] Black mates.} 42. Rc7+ {[%emt 0:00:55]} Kh6 {[%emt 0:01:20]} 43. Bc1 {[%emt 0:00:36]} Rg1 {[%emt 0:00:20]} 44. Rc2 {[%emt 0:00:30] [#]} Rxc1+ $1 {[%emt 0:00:59]} 45. Rxc1 {[%emt 0:00:08]} Rxh2 {[%emt 0:00:14] KRB-KR} 46. Re1 {[%emt 0:00:42]} Re2 {[%emt 0:00:07]} 47. Rg1 {[%emt 0:01:12]} e5 {[%emt 0:00:14]} 48. Kb1 {[%emt 0:00:17]} e4 {[%emt 0:00:14]} 49. Kc1 {[%emt 0:00:24]} e3 {[%emt 0:00:30]} 50. Rg3 {[%emt 0:00:55]} Re1+ {[%emt 0:00:54]} 51. Kc2 {[%emt 0:02:34]} e2 {[%emt 0:00:00]} 52. Re3 {[%emt 0:01:53]} Rd1 {[%emt 0:00:48]} 53. Kc3 {[%emt 0:02:58]} e1=Q+ {[%emt 0:00:17]} 54. Rxe1 {[%emt 0:00:11]} Rxe1 {[%emt 0:00:11]} 55. Kb4 {[%emt 0:00:39]} Re4+ {[%emt 0:00:16]} 56. Ka3 {[%emt 0:00:15]} a5 {[%emt 0:00:10]} 57. Kb2 {[%emt 0:00:15]} Kg5 {[%emt 0:00:41]} 58. Ka3 {[%emt 0:00:21]} Re2 {[%emt 0:00:16]} 59. b4 {[%emt 0:00:17]} Re3+ {[%emt 0:00:07]} 60. Kb2 {[%emt 0:00:12]} axb4 {[%emt 0:00:12]} 61. Ka2 {[%emt 0:01:32]} Bc4+ {[%emt 0:00:17]} 62. Kb2 {[%emt 0:00:20]} Re2+ {[%emt 0:00:15]} 63. Ka1 {[%emt 0:00:46]} b3 {[%emt 0:00:12]} 64. Kb1 {[%emt 0:00:20]} Bd3+ {[%emt 0:00:09]} 65. Ka1 {[%emt 0:00:17]} b2+ {[%emt 0:00:09]} 66. Ka2 {[%emt 0:00:08]} b1=Q+ {[%emt 0:00:19]} 67. Ka3 {[%emt 0:00:09]} Ra2# {[%emt 0:00:48] Weighted Error Value: White=1.14/Black=0.69} 0-1